[Event "Titled Tuesday Blitz August 08 Late 2023"]
[White "Janaszak, Dawid"]
[Black "Ramadoss, Ashokkumar"]
[WhiteFideId "1119206"]
[BlackFideId "5040990"]
[WhiteElo "2552"]
[BlackElo "2300"]
[Result "1-0"]
[Round "2"]
[TimeControl "180+1"]
[Date "2023.08.08"]
[WhiteClock "0:00:05"]
[BlackClock "0:00:14"]
[Board "101"]

1. e4 {[%clk 0:03:00]}  e5 {[%clk 0:02:59]} 2. Nc3 {[%clk 0:02:58]}  Nf6 {[%clk 0:02:58]} 3. d4 {[%clk 0:02:58]}  Nc6 {[%clk 0:02:56]} 4. dxe5 {[%clk 0:02:56]}  Nxe5 {[%clk 0:02:55]} 5. f4 {[%clk 0:02:55]}  Nc6 {[%clk 0:02:51]} 6. e5 {[%clk 0:02:55]}  Ng8 {[%clk 0:02:51]} 7. Nf3 {[%clk 0:02:52]}  d6 {[%clk 0:02:51]} 8. Qe2 {[%clk 0:02:44]}  dxe5 {[%clk 0:02:45]} 9. fxe5 {[%clk 0:02:44]}  Bc5 {[%clk 0:02:43]} 10. Bg5 {[%clk 0:02:40]}  Be7 {[%clk 0:02:42]} 11. Bd2 {[%clk 0:02:30]}  Bg4 {[%clk 0:02:39]} 12. O-O-O {[%clk 0:02:30]}  Qd7 {[%clk 0:02:32]} 13. Bh6 {[%clk 0:02:21]}  Qf5 {[%clk 0:02:18]} 14. Bxg7 {[%clk 0:01:36]}  Bxf3 {[%clk 0:02:17]} 15. Qxf3 {[%clk 0:01:37]}  Qg5+ {[%clk 0:02:14]} 16. Kb1 {[%clk 0:01:37]}  Qxg7 {[%clk 0:02:14]} 17. Nb5 {[%clk 0:01:31]}  Bd8 {[%clk 0:02:10]} 18. e6 {[%clk 0:01:22]}  fxe6 {[%clk 0:02:08]} 19. Bc4 {[%clk 0:01:22]}  Qf6 {[%clk 0:01:35]} 20. Qh3 {[%clk 0:01:08]}  Qf5 {[%clk 0:01:25]} 21. g4 {[%clk 0:01:04]}  Qc5 {[%clk 0:01:20]} 22. Bxe6 {[%clk 0:00:56]}  Qxb5 {[%clk 0:01:14]} 23. Rd5 {[%clk 0:00:53]}  Qxd5 {[%clk 0:00:52]} 24. Bxd5 {[%clk 0:00:53]}  Nge7 {[%clk 0:00:52]} 25. Qh5+ {[%clk 0:00:49]}  Ng6 {[%clk 0:00:53]} 26. Re1+ {[%clk 0:00:48]}  Be7 {[%clk 0:00:53]} 27. Be6 {[%clk 0:00:38]}  Rd8 {[%clk 0:00:37]} 28. c3 {[%clk 0:00:34]}  Rd6 {[%clk 0:00:31]} 29. Bf5 {[%clk 0:00:30]}  Kd8 {[%clk 0:00:32]} 30. g5 {[%clk 0:00:29]}  Rf8 {[%clk 0:00:20]} 31. Be4 {[%clk 0:00:24]}  Rf7 {[%clk 0:00:20]} 32. a3 {[%clk 0:00:23]}  Nce5 {[%clk 0:00:19]} 33. Bxb7 {[%clk 0:00:20]}  Rb6 {[%clk 0:00:19]} 34. Bd5 {[%clk 0:00:19]}  Rf2 {[%clk 0:00:18]} 35. Re2 {[%clk 0:00:18]}  Rxe2 {[%clk 0:00:14]} 36. Qxe2 {[%clk 0:00:17]}  Bxg5 {[%clk 0:00:14]} 37. Qe4 {[%clk 0:00:14]}  Bf6 {[%clk 0:00:13]} 38. Ka2 {[%clk 0:00:14]}  Rd6 {[%clk 0:00:13]} 39. c4 {[%clk 0:00:14]}  c6 {[%clk 0:00:14]} 40. Bg8 {[%clk 0:00:13]}  Nd3 {[%clk 0:00:11]} 41. c5 {[%clk 0:00:12]}  Nxc5 {[%clk 0:00:10]} 42. Qb4 {[%clk 0:00:12]}  Nd7 {[%clk 0:00:10]} 43. Bb3 {[%clk 0:00:11]}  Be7 {[%clk 0:00:09]} 44. Qa5+ {[%clk 0:00:11]}  Kc8 {[%clk 0:00:09]} 45. Qxa7 {[%clk 0:00:12]}  Nc5 {[%clk 0:00:09]} 46. Qxc5 {[%clk 0:00:11]}  Kd7 {[%clk 0:00:10]} 47. Qa7+ {[%clk 0:00:11]}  Ke8 {[%clk 0:00:09]} 48. Qb8+ {[%clk 0:00:12]}  Rd8 {[%clk 0:00:08]} 49. Qb7 {[%clk 0:00:12]}  Kf8 {[%clk 0:00:09]} 50. Qxc6 {[%clk 0:00:12]}  Kg7 {[%clk 0:00:10]} 51. Qe6 {[%clk 0:00:13]}  Rd6 {[%clk 0:00:11]} 52. Qf7+ {[%clk 0:00:13]}  Kh6 {[%clk 0:00:10]} 53. Bc2 {[%clk 0:00:14]}  Rf6 {[%clk 0:00:11]} 54. Qc4 {[%clk 0:00:12]}  Rf4 {[%clk 0:00:11]} 55. Qe6 {[%clk 0:00:12]}  Bf6 {[%clk 0:00:11]} 56. Qe2 {[%clk 0:00:11]}  Rh4 {[%clk 0:00:10]} 57. Qd2+ {[%clk 0:00:11]}  Nf4 {[%clk 0:00:11]} 58. Bd1 {[%clk 0:00:10]}  Bg5 {[%clk 0:00:12]} 59. Qd6+ {[%clk 0:00:10]}  Ng6 {[%clk 0:00:11]} 60. Bc2 {[%clk 0:00:10]}  Bf4 {[%clk 0:00:11]} 61. Qc6 {[%clk 0:00:09]}  Rxh2 {[%clk 0:00:12]} 62. Bxg6 {[%clk 0:00:09]}  hxg6 {[%clk 0:00:13]} 63. Qc4 {[%clk 0:00:09]}  Be5 {[%clk 0:00:13]} 64. Qe4 {[%clk 0:00:05]}  Rxb2+ {[%clk 0:00:13]} 65. Ka1 {[%clk 0:00:05]}  Bg7 {[%clk 0:00:14]} 66. Qh4# {[%clk 0:00:05]} 1-0


[Site "https://www.chess.com"]

[Event "Titled Tuesday Blitz August 08 Late 2023"]
[White "Hajiyev, Kanan"]
[Black "Tqebuchava, Zurab"]
[WhiteFideId "13404148"]
[BlackFideId "13601113"]
[WhiteElo "2550"]
[BlackElo "2276"]
[Result "1-0"]
[Round "2"]
[TimeControl "180+1"]
[Date "2023.08.08"]
[WhiteClock "0:00:16"]
[BlackClock "0:00:00"]
[Board "102"]

1. d4 {[%clk 0:03:00]}  d6 {[%clk 0:02:58]} 2. Nf3 {[%clk 0:03:01]}  g6 {[%clk 0:02:57]} 3. g3 {[%clk 0:03:02]}  Bg7 {[%clk 0:02:56]} 4. Bg2 {[%clk 0:03:02]}  Nf6 {[%clk 0:02:56]} 5. O-O {[%clk 0:03:03]}  O-O {[%clk 0:02:56]} 6. b3 {[%clk 0:03:04]}  c6 {[%clk 0:02:55]} 7. Bb2 {[%clk 0:03:04]}  Bg4 {[%clk 0:02:54]} 8. c4 {[%clk 0:02:59]}  Bxf3 {[%clk 0:02:50]} 9. exf3 {[%clk 0:02:58]}  d5 {[%clk 0:02:47]} 10. f4 {[%clk 0:02:56]}  e6 {[%clk 0:02:46]} 11. Nd2 {[%clk 0:02:54]}  Nbd7 {[%clk 0:02:39]} 12. Nf3 {[%clk 0:02:53]}  dxc4 {[%clk 0:02:23]} 13. bxc4 {[%clk 0:02:53]}  Nb6 {[%clk 0:02:23]} 14. Qb3 {[%clk 0:02:49]}  Ne4 {[%clk 0:02:14]} 15. Rad1 {[%clk 0:02:37]}  Qc7 {[%clk 0:01:58]} 16. Ne5 {[%clk 0:02:36]}  Nf6 {[%clk 0:01:55]} 17. Rb1 {[%clk 0:02:23]}  Rab8 {[%clk 0:01:47]} 18. h4 {[%clk 0:02:21]}  h5 {[%clk 0:01:45]} 19. Rfe1 {[%clk 0:02:18]}  Ng4 {[%clk 0:01:41]} 20. Bf3 {[%clk 0:01:56]}  Nh6 {[%clk 0:01:12]} 21. Rbc1 {[%clk 0:01:46]}  Nf5 {[%clk 0:01:10]} 22. d5 {[%clk 0:01:44]}  exd5 {[%clk 0:01:04]} 23. cxd5 {[%clk 0:01:44]}  c5 {[%clk 0:01:03]} 24. a4 {[%clk 0:01:31]}  Rbc8 {[%clk 0:00:41]} 25. a5 {[%clk 0:01:24]}  Nd7 {[%clk 0:00:39]} 26. Nc4 {[%clk 0:00:32]}  Nd4 {[%clk 0:00:32]} 27. Kg2 {[%clk 0:00:26]}  Nxf3 {[%clk 0:00:20]} 28. Qxf3 {[%clk 0:00:25]}  Bxb2 {[%clk 0:00:19]} 29. Nxb2 {[%clk 0:00:25]}  Qxa5 {[%clk 0:00:18]} 30. f5 {[%clk 0:00:24]}  Qb6 {[%clk 0:00:12]} 31. Nc4 {[%clk 0:00:24]}  Qf6 {[%clk 0:00:12]} 32. d6 {[%clk 0:00:21]}  b5 {[%clk 0:00:09]} 33. Na5 {[%clk 0:00:17]}  Qxf5 {[%clk 0:00:08]} 34. Qxf5 {[%clk 0:00:16]}  gxf5 {[%clk 0:00:09]} 35. Re7 {[%clk 0:00:17]}  Rfd8 {[%clk 0:00:07]} 36. Nb7 {[%clk 0:00:18]}  Nf6 {[%clk 0:00:06]} 37. Nxd8 {[%clk 0:00:17]}  Rxd8 {[%clk 0:00:07]} 38. Rxc5 {[%clk 0:00:17]}  Rxd6 {[%clk 0:00:07]} 39. Rxb5 {[%clk 0:00:17]}  Rd8 {[%clk 0:00:06]} 40. Rxa7 {[%clk 0:00:16]}  Ng4 {[%clk 0:00:05]} 41. Rxf5 {[%clk 0:00:16]}  Rd2 {[%clk 0:00:04]} 42. Rf3 {[%clk 0:00:14]}  Rc2 {[%clk 0:00:04]} 43. Ra5 {[%clk 0:00:14]}  Rc7 {[%clk 0:00:03]} 44. Rxh5 {[%clk 0:00:14]}  Kf8 {[%clk 0:00:03]} 45. Rh8+ {[%clk 0:00:13]}  Ke7 {[%clk 0:00:03]} 46. Rxf7+ {[%clk 0:00:13]}  Kxf7 {[%clk 0:00:02]} 47. Rh7+ {[%clk 0:00:14]}  Kg6 {[%clk 0:00:03]} 48. Rxc7 {[%clk 0:00:15]}  Nf6 {[%clk 0:00:03]} 49. Rc6 {[%clk 0:00:15]}  Kg7 {[%clk 0:00:00]} 50. Rxf6 {[%clk 0:00:16]} 1-0


[Site "https://www.chess.com"]

[Event "Titled Tuesday Blitz August 08 Late 2023"]
[White "Zemlyanskii, Ivan"]
[Black "Nathan, Nitish"]
[WhiteFideId "24249971"]
[BlackFideId "30927870"]
[WhiteElo "2874"]
[BlackElo "2411"]
[Result "1-0"]
[Round "2"]
[TimeControl "180+1"]
[Date "2023.08.08"]
[WhiteClock "0:00:32"]
[BlackClock "0:01:32"]
[Board "106"]

1. d4 {[%clk 0:03:00]}  d5 {[%clk 0:02:59]} 2. Bf4 {[%clk 0:02:58]}  Bf5 {[%clk 0:02:57]} 3. e3 {[%clk 0:02:58]}  e6 {[%clk 0:02:58]} 4. Nf3 {[%clk 0:02:52]}  Nf6 {[%clk 0:02:57]} 5. c4 {[%clk 0:02:48]}  Bxb1 {[%clk 0:02:57]} 6. Rxb1 {[%clk 0:02:49]}  Bb4+ {[%clk 0:02:57]} 7. Ke2 {[%clk 0:02:49]}  dxc4 {[%clk 0:02:57]} 8. Qa4+ {[%clk 0:02:41]}  Nc6 {[%clk 0:02:57]} 9. a3 {[%clk 0:02:41]}  Bd6 {[%clk 0:02:56]} 10. Bg3 {[%clk 0:02:40]}  O-O {[%clk 0:02:54]} 11. Qxc4 {[%clk 0:02:39]}  Ne4 {[%clk 0:02:48]} 12. Qc2 {[%clk 0:02:26]}  f5 {[%clk 0:02:46]} 13. Ke1 {[%clk 0:02:23]}  Kh8 {[%clk 0:02:43]} 14. Bd3 {[%clk 0:02:22]}  Nf6 {[%clk 0:02:42]} 15. Ke2 {[%clk 0:02:19]}  Nd5 {[%clk 0:02:40]} 16. Rhe1 {[%clk 0:02:00]}  Qf6 {[%clk 0:02:36]} 17. Kf1 {[%clk 0:01:55]}  g5 {[%clk 0:02:33]} 18. Bxd6 {[%clk 0:01:32]}  cxd6 {[%clk 0:02:32]} 19. Bc4 {[%clk 0:01:32]}  g4 {[%clk 0:02:29]} 20. Nd2 {[%clk 0:01:25]}  Qh4 {[%clk 0:02:28]} 21. Kg1 {[%clk 0:01:23]}  Rf6 {[%clk 0:02:28]} 22. g3 {[%clk 0:01:19]}  Qh5 {[%clk 0:02:26]} 23. e4 {[%clk 0:01:02]}  Nxd4 {[%clk 0:02:21]} 24. Qd3 {[%clk 0:01:00]}  Rh6 {[%clk 0:01:59]} 25. Qxd4+ {[%clk 0:00:53]}  e5 {[%clk 0:01:59]} 26. Qxd5 {[%clk 0:00:46]}  f4 {[%clk 0:01:57]} 27. gxf4 {[%clk 0:00:34]}  Qxh2+ {[%clk 0:01:56]} 28. Kf1 {[%clk 0:00:34]}  exf4 {[%clk 0:01:33]} 29. Qd4+ {[%clk 0:00:32]}  Rf6 {[%clk 0:01:32]} 30. Qxf6# {[%clk 0:00:32]} 1-0


[Site "https://www.chess.com"]

[Event "Titled Tuesday Blitz August 08 Late 2023"]
[White "Salinas Herrera, Pablo"]
[Black "KorolDimitriy75"]
[WhiteFideId "3407128"]
[WhiteElo "2843"]
[BlackElo "2410"]
[Result "1-0"]
[Round "2"]
[TimeControl "180+1"]
[Date "2023.08.08"]
[WhiteClock "0:00:57"]
[BlackClock "0:00:00"]
[Board "107"]

1. d4 {[%clk 0:03:00]}  Nf6 {[%clk 0:02:59]} 2. Nf3 {[%clk 0:03:01]}  g6 {[%clk 0:02:59]} 3. Bf4 {[%clk 0:03:02]}  c5 {[%clk 0:02:58]} 4. e3 {[%clk 0:03:02]}  Qb6 {[%clk 0:02:58]} 5. Qc1 {[%clk 0:03:02]}  Bg7 {[%clk 0:02:57]} 6. c3 {[%clk 0:03:03]}  d5 {[%clk 0:02:56]} 7. Nbd2 {[%clk 0:03:03]}  Nc6 {[%clk 0:02:54]} 8. h3 {[%clk 0:03:04]}  O-O {[%clk 0:02:54]} 9. Bd3 {[%clk 0:03:04]}  h6 {[%clk 0:02:45]} 10. O-O {[%clk 0:03:04]}  Be6 {[%clk 0:02:43]} 11. Re1 {[%clk 0:03:04]}  Rac8 {[%clk 0:02:41]} 12. Qb1 {[%clk 0:03:04]}  Rfd8 {[%clk 0:02:13]} 13. a3 {[%clk 0:03:00]}  a5 {[%clk 0:02:12]} 14. a4 {[%clk 0:02:55]}  Bd7 {[%clk 0:01:23]} 15. Ne5 {[%clk 0:02:39]}  Nxe5 {[%clk 0:01:14]} 16. Bxe5 {[%clk 0:02:40]}  Be8 {[%clk 0:01:10]} 17. Nf3 {[%clk 0:02:40]}  e6 {[%clk 0:01:06]} 18. dxc5 {[%clk 0:02:29]}  Qxc5 {[%clk 0:01:04]} 19. Bd4 {[%clk 0:02:30]}  Qc7 {[%clk 0:00:59]} 20. Qd1 {[%clk 0:02:25]}  Ne4 {[%clk 0:00:49]} 21. Bxg7 {[%clk 0:02:24]}  Kxg7 {[%clk 0:00:49]} 22. Nd4 {[%clk 0:02:21]}  Nf6 {[%clk 0:00:40]} 23. Qb3 {[%clk 0:02:18]}  e5 {[%clk 0:00:35]} 24. Nb5 {[%clk 0:02:19]}  Qb6 {[%clk 0:00:35]} 25. Bf1 {[%clk 0:02:16]}  Bd7 {[%clk 0:00:32]} 26. Rad1 {[%clk 0:02:16]}  Be6 {[%clk 0:00:32]} 27. Qa3 {[%clk 0:02:16]}  h5 {[%clk 0:00:27]} 28. Rd2 {[%clk 0:02:15]}  Rd7 {[%clk 0:00:26]} 29. Qa1 {[%clk 0:02:12]}  Ne4 {[%clk 0:00:23]} 30. Rdd1 {[%clk 0:02:12]}  Rcd8 {[%clk 0:00:19]} 31. b3 {[%clk 0:02:09]}  f6 {[%clk 0:00:16]} 32. Qb2 {[%clk 0:02:08]}  Qc5 {[%clk 0:00:15]} 33. Bd3 {[%clk 0:02:07]}  Nd6 {[%clk 0:00:14]} 34. Nxd6 {[%clk 0:02:06]}  Rxd6 {[%clk 0:00:15]} 35. Bb5 {[%clk 0:02:04]}  Kf7 {[%clk 0:00:13]} 36. b4 {[%clk 0:02:03]}  Qb6 {[%clk 0:00:12]} 37. Bf1 {[%clk 0:02:02]}  Rc8 {[%clk 0:00:11]} 38. b5 {[%clk 0:01:56]}  Rd7 {[%clk 0:00:09]} 39. Rc1 {[%clk 0:01:48]}  Rdc7 {[%clk 0:00:09]} 40. Red1 {[%clk 0:01:48]}  Rc5 {[%clk 0:00:09]} 41. Be2 {[%clk 0:01:44]}  Qc7 {[%clk 0:00:09]} 42. c4 {[%clk 0:01:31]}  b6 {[%clk 0:00:06]} 43. Qc3 {[%clk 0:01:15]}  dxc4 {[%clk 0:00:06]} 44. Rc2 {[%clk 0:01:15]}  Qe7 {[%clk 0:00:06]} 45. Rcd2 {[%clk 0:01:16]}  R8c7 {[%clk 0:00:06]} 46. Rd6 {[%clk 0:01:16]}  Kg7 {[%clk 0:00:05]} 47. Rxb6 {[%clk 0:01:16]}  Bf7 {[%clk 0:00:05]} 48. Rdd6 {[%clk 0:01:15]}  f5 {[%clk 0:00:04]} 49. Bf3 {[%clk 0:01:02]}  Kh7 {[%clk 0:00:03]} 50. Rdc6 {[%clk 0:00:59]}  e4 {[%clk 0:00:00]} 51. Be2 {[%clk 0:00:57]} 1-0


[Site "https://www.chess.com"]

[Event "Titled Tuesday Blitz August 08 Late 2023"]
[White "Bueno, Alfeu Junior Varela"]
[Black "ProphetReborn"]
[WhiteFideId "2108879"]
[WhiteElo "2407"]
[BlackElo "2828"]
[Result "0-1"]
[Round "2"]
[TimeControl "180+1"]
[Date "2023.08.08"]
[WhiteClock "0:00:00"]
[BlackClock "0:00:23"]
[Board "108"]

1. e4 {[%clk 0:03:00]}  c5 {[%clk 0:02:59]} 2. Nc3 {[%clk 0:03:01]}  Nc6 {[%clk 0:02:58]} 3. f4 {[%clk 0:03:02]}  g6 {[%clk 0:02:57]} 4. Nf3 {[%clk 0:03:02]}  Bg7 {[%clk 0:02:57]} 5. Bb5 {[%clk 0:03:03]}  Nd4 {[%clk 0:02:57]} 6. O-O {[%clk 0:03:03]}  Nxb5 {[%clk 0:02:56]} 7. Nxb5 {[%clk 0:03:04]}  d6 {[%clk 0:02:57]} 8. d3 {[%clk 0:03:04]}  Nf6 {[%clk 0:02:57]} 9. Nc3 {[%clk 0:03:04]}  O-O {[%clk 0:02:57]} 10. Qe1 {[%clk 0:03:04]}  Rb8 {[%clk 0:02:55]} 11. Qh4 {[%clk 0:03:04]}  b5 {[%clk 0:02:55]} 12. f5 {[%clk 0:03:05]}  b4 {[%clk 0:02:55]} 13. Ne2 {[%clk 0:03:05]}  e6 {[%clk 0:02:54]} 14. Bg5 {[%clk 0:03:05]}  exf5 {[%clk 0:02:54]} 15. Rae1 {[%clk 0:02:58]}  h6 {[%clk 0:02:48]} 16. Bxh6 {[%clk 0:02:58]}  Bxh6 {[%clk 0:02:49]} 17. Qxh6 {[%clk 0:02:59]}  Ng4 {[%clk 0:02:49]} 18. Qf4 {[%clk 0:02:58]}  fxe4 {[%clk 0:02:48]} 19. dxe4 {[%clk 0:02:53]}  Qf6 {[%clk 0:02:47]} 20. Qg3 {[%clk 0:02:49]}  Qxb2 {[%clk 0:02:42]} 21. Ng5 {[%clk 0:02:49]}  f6 {[%clk 0:02:31]} 22. Qxd6 {[%clk 0:02:30]}  Qe5 {[%clk 0:02:31]} 23. Qxe5 {[%clk 0:01:59]}  Nxe5 {[%clk 0:02:32]} 24. Nf3 {[%clk 0:01:58]}  Nc4 {[%clk 0:02:32]} 25. Nf4 {[%clk 0:01:54]}  Kg7 {[%clk 0:02:30]} 26. e5 {[%clk 0:01:45]}  Rb6 {[%clk 0:02:04]} 27. Nd5 {[%clk 0:01:33]}  f5 {[%clk 0:01:19]} 28. Nxb6 {[%clk 0:01:33]}  axb6 {[%clk 0:01:20]} 29. e6 {[%clk 0:01:25]}  Kf6 {[%clk 0:01:20]} 30. e7 {[%clk 0:01:14]}  Re8 {[%clk 0:01:20]} 31. h4 {[%clk 0:01:14]}  Rxe7 {[%clk 0:01:16]} 32. Rxe7 {[%clk 0:01:14]}  Kxe7 {[%clk 0:01:17]} 33. Re1+ {[%clk 0:01:09]}  Kf6 {[%clk 0:01:09]} 34. Re8 {[%clk 0:01:08]}  Bb7 {[%clk 0:01:06]} 35. Ng5 {[%clk 0:01:04]}  Bd5 {[%clk 0:01:05]} 36. Rd8 {[%clk 0:00:56]}  Ke5 {[%clk 0:01:00]} 37. Re8+ {[%clk 0:00:35]}  Kd4 {[%clk 0:00:57]} 38. Rd8 {[%clk 0:00:34]}  Ne3 {[%clk 0:00:54]} 39. Kf2 {[%clk 0:00:28]}  Nxc2 {[%clk 0:00:48]} 40. Nf3+ {[%clk 0:00:25]}  Ke4 {[%clk 0:00:48]} 41. Nd2+ {[%clk 0:00:21]}  Ke5 {[%clk 0:00:45]} 42. Nf3+ {[%clk 0:00:20]}  Bxf3 {[%clk 0:00:42]} 43. gxf3 {[%clk 0:00:19]}  b5 {[%clk 0:00:43]} 44. Rg8 {[%clk 0:00:11]}  Kf6 {[%clk 0:00:41]} 45. Rb8 {[%clk 0:00:10]}  Nd4 {[%clk 0:00:40]} 46. Rc8 {[%clk 0:00:11]}  c4 {[%clk 0:00:38]} 47. Ke3 {[%clk 0:00:06]}  Nc2+ {[%clk 0:00:37]} 48. Kd2 {[%clk 0:00:05]}  Nd4 {[%clk 0:00:37]} 49. Ke3 {[%clk 0:00:06]}  Ne6 {[%clk 0:00:32]} 50. Rc6 {[%clk 0:00:05]}  Ke5 {[%clk 0:00:31]} 51. Rb6 {[%clk 0:00:05]}  Nd4 {[%clk 0:00:30]} 52. Rxg6 {[%clk 0:00:04]}  f4+ {[%clk 0:00:27]} 53. Kd2 {[%clk 0:00:01]}  Nxf3+ {[%clk 0:00:25]} 54. Kc2 {[%clk 0:00:01]}  Nxh4 {[%clk 0:00:23]} 55. Rg5+ {[%clk 0:00:02]}  Nf5 {[%clk 0:00:22]} 56. Kd2 {[%clk 0:00:02]}  Ke4 {[%clk 0:00:22]} 57. Ke2 {[%clk 0:00:00]}  c3 {[%clk 0:00:23]} 0-1


[Site "https://www.chess.com"]

[Event "Titled Tuesday Blitz August 08 Late 2023"]
[White "Shtembuliak, Evgeny"]
[Black "Ozalp, Burak"]
[WhiteFideId "14113325"]
[BlackFideId "6314210"]
[WhiteElo "2823"]
[BlackElo "2406"]
[Result "1-0"]
[Round "2"]
[TimeControl "180+1"]
[Date "2023.08.08"]
[WhiteClock "0:02:28"]
[BlackClock "0:01:06"]
[Board "109"]

1. e4 {[%clk 0:03:00]}  c6 {[%clk 0:02:59]} 2. d4 {[%clk 0:03:00]}  d5 {[%clk 0:02:59]} 3. exd5 {[%clk 0:03:01]}  cxd5 {[%clk 0:02:59]} 4. Bd3 {[%clk 0:03:02]}  Qc7 {[%clk 0:02:57]} 5. c3 {[%clk 0:03:01]}  Nc6 {[%clk 0:02:56]} 6. Ne2 {[%clk 0:03:01]}  Bg4 {[%clk 0:02:40]} 7. O-O {[%clk 0:03:00]}  e6 {[%clk 0:02:35]} 8. Qe1 {[%clk 0:03:01]}  Bd6 {[%clk 0:02:32]} 9. f3 {[%clk 0:03:01]}  Bh5 {[%clk 0:02:11]} 10. Qh4 {[%clk 0:03:00]}  Nf6 {[%clk 0:02:06]} 11. Bg5 {[%clk 0:02:59]}  Bg6 {[%clk 0:02:02]} 12. Bxg6 {[%clk 0:02:58]}  fxg6 {[%clk 0:02:02]} 13. Bxf6 {[%clk 0:02:59]}  gxf6 {[%clk 0:01:58]} 14. Qxf6 {[%clk 0:03:00]}  Rf8 {[%clk 0:01:22]} 15. Qxe6+ {[%clk 0:02:58]}  Ne7 {[%clk 0:01:23]} 16. f4 {[%clk 0:02:49]}  Qd7 {[%clk 0:01:13]} 17. Qxd7+ {[%clk 0:02:48]}  Kxd7 {[%clk 0:01:14]} 18. Nd2 {[%clk 0:02:46]}  Nf5 {[%clk 0:01:15]} 19. Nf3 {[%clk 0:02:35]}  Rae8 {[%clk 0:01:13]} 20. Ne5+ {[%clk 0:02:35]}  Kc7 {[%clk 0:01:14]} 21. Rf3 {[%clk 0:02:33]}  g5 {[%clk 0:01:12]} 22. fxg5 {[%clk 0:02:29]}  Bxe5 {[%clk 0:01:11]} 23. dxe5 {[%clk 0:02:30]}  Rxe5 {[%clk 0:01:11]} 24. Nd4 {[%clk 0:02:30]}  Nxd4 {[%clk 0:01:06]} 25. Rxf8 {[%clk 0:02:29]}  Ne2+ {[%clk 0:01:06]} 26. Kf2 {[%clk 0:02:28]} 1-0


[Site "https://www.chess.com"]

[Event "Titled Tuesday Blitz August 08 Late 2023"]
[White "Herman, Daniel"]
[Black "Miladinovic, Igor"]
[WhiteFideId "30935008"]
[BlackFideId "4203380"]
[WhiteElo "2402"]
[BlackElo "2777"]
[Result "0-1"]
[Round "2"]
[TimeControl "180+1"]
[Date "2023.08.08"]
[WhiteClock "0:00:03"]
[BlackClock "0:00:24"]
[Board "110"]

1. c4 {[%clk 0:03:00]}  e5 {[%clk 0:02:59]} 2. e3 {[%clk 0:02:59]}  Nc6 {[%clk 0:02:59]} 3. a3 {[%clk 0:02:57]}  g6 {[%clk 0:02:58]} 4. Nc3 {[%clk 0:02:48]}  Bg7 {[%clk 0:02:58]} 5. Nf3 {[%clk 0:02:47]}  Nf6 {[%clk 0:02:56]} 6. Qc2 {[%clk 0:02:43]}  O-O {[%clk 0:02:55]} 7. b4 {[%clk 0:02:42]}  e4 {[%clk 0:02:40]} 8. Ng5 {[%clk 0:02:31]}  Re8 {[%clk 0:02:39]} 9. Bb2 {[%clk 0:02:29]}  h6 {[%clk 0:02:38]} 10. Nh3 {[%clk 0:02:25]}  d6 {[%clk 0:02:37]} 11. Nf4 {[%clk 0:02:25]}  Bf5 {[%clk 0:02:34]} 12. Be2 {[%clk 0:02:20]}  a5 {[%clk 0:02:02]} 13. b5 {[%clk 0:02:17]}  Ne5 {[%clk 0:02:02]} 14. O-O {[%clk 0:01:54]}  c6 {[%clk 0:01:55]} 15. Rab1 {[%clk 0:01:20]}  g5 {[%clk 0:01:45]} 16. Nh5 {[%clk 0:01:20]}  Nxh5 {[%clk 0:01:45]} 17. Bxh5 {[%clk 0:01:21]}  Nd3 {[%clk 0:01:45]} 18. Be2 {[%clk 0:01:15]}  Nxb2 {[%clk 0:01:40]} 19. Rxb2 {[%clk 0:01:16]}  d5 {[%clk 0:01:40]} 20. bxc6 {[%clk 0:01:14]}  bxc6 {[%clk 0:01:39]} 21. cxd5 {[%clk 0:01:11]}  cxd5 {[%clk 0:01:40]} 22. Rb5 {[%clk 0:01:09]}  Be6 {[%clk 0:01:30]} 23. d4 {[%clk 0:01:06]}  Qd6 {[%clk 0:01:23]} 24. Rc5 {[%clk 0:00:53]}  Rec8 {[%clk 0:01:22]} 25. Na4 {[%clk 0:00:52]}  Bf8 {[%clk 0:01:21]} 26. Rc1 {[%clk 0:00:49]}  Qd8 {[%clk 0:01:21]} 27. Rxc8 {[%clk 0:00:37]}  Rxc8 {[%clk 0:01:22]} 28. Nc5 {[%clk 0:00:38]}  Bxc5 {[%clk 0:01:18]} 29. dxc5 {[%clk 0:00:38]}  Qf6 {[%clk 0:01:09]} 30. Qc3 {[%clk 0:00:35]}  Qxc3 {[%clk 0:01:06]} 31. Rxc3 {[%clk 0:00:35]}  Kf8 {[%clk 0:01:07]} 32. Kf1 {[%clk 0:00:20]}  Rb8 {[%clk 0:01:04]} 33. Ke1 {[%clk 0:00:15]}  Rb2 {[%clk 0:00:57]} 34. c6 {[%clk 0:00:14]}  Ke7 {[%clk 0:00:57]} 35. Ba6 {[%clk 0:00:13]}  Rb1+ {[%clk 0:00:45]} 36. Kd2 {[%clk 0:00:13]}  Rb2+ {[%clk 0:00:46]} 37. Ke1 {[%clk 0:00:13]}  Rb1+ {[%clk 0:00:45]} 38. Kd2 {[%clk 0:00:13]}  Rb6 {[%clk 0:00:40]} 39. Bb7 {[%clk 0:00:12]}  Kd6 {[%clk 0:00:40]} 40. f3 {[%clk 0:00:11]}  Kc7 {[%clk 0:00:35]} 41. fxe4 {[%clk 0:00:11]}  dxe4 {[%clk 0:00:36]} 42. Rc5 {[%clk 0:00:11]}  Rb2+ {[%clk 0:00:36]} 43. Kc3 {[%clk 0:00:11]}  Rxg2 {[%clk 0:00:35]} 44. Rxa5 {[%clk 0:00:11]}  Rxh2 {[%clk 0:00:35]} 45. Ra7 {[%clk 0:00:10]}  Rh1 {[%clk 0:00:31]} 46. Ba8+ {[%clk 0:00:10]}  Kb8 {[%clk 0:00:30]} 47. Ra5 {[%clk 0:00:06]}  g4 {[%clk 0:00:29]} 48. c7+ {[%clk 0:00:04]}  Kxc7 {[%clk 0:00:29]} 49. Bxe4 {[%clk 0:00:05]}  Rh3 {[%clk 0:00:26]} 50. Kd4 {[%clk 0:00:05]}  g3 {[%clk 0:00:27]} 51. Ra7+ {[%clk 0:00:05]}  Kd6 {[%clk 0:00:27]} 52. Ra6+ {[%clk 0:00:05]}  Ke7 {[%clk 0:00:27]} 53. Ke5 {[%clk 0:00:05]}  Rh5+ {[%clk 0:00:26]} 54. Kf4 {[%clk 0:00:05]}  Rg5 {[%clk 0:00:26]} 55. Bg2 {[%clk 0:00:05]}  Rg6 {[%clk 0:00:26]} 56. a4 {[%clk 0:00:04]}  h5 {[%clk 0:00:25]} 57. a5 {[%clk 0:00:04]}  h4 {[%clk 0:00:24]} 58. Rxe6+ {[%clk 0:00:03]} 0-1


[Site "https://www.chess.com"]